fUST/lending_fUST_20250620
["ID","MTS","AMOUNT","RATE_DAILY","PERIOD"]
[366653148,1750377039051,-151.0,0.00022,7]
[366653149,1750377039060,-151.0,0.00022,7]
[366653150,1750377039070,-152.006554,0.00022,7]
[366653151,1750377039079,-151.0,0.00022,7]
[366653152,1750377039089,-151.0,0.00022,7]
[366653153,1750377039099,-151.0,0.00022,7]
[366653154,1750377039108,-1175.40816155,0.00022038,6]
[366653155,1750377039118,-168.0,0.00022173,2]
[366653156,1750377039128,-1175.40816155,0.00022176,6]
[366653157,1750377039137,-460.0,0.00022191,2]
[366653158,1750377039147,-1000.0,0.00022191,6]
[366653159,1750377039157,-460.0,0.00022191,6]
[366653160,1750377039167,-460.0,0.00022191,6]
[366653161,1750377039176,-467.35000002,0.00022191,6]
[366653162,1750377039186,-460.0,0.00022191,6]
[366653163,1750377039196,-460.0,0.00022191,6]
[366653164,1750377039206,-460.0,0.00022191,6]
[366653165,1750377039216,-460.0,0.00022191,6]
[366653166,1750377039225,-460.0,0.00022191,6]
[366653167,1750377039235,-419.82685192,0.00022191,6]
[366653168,1750377039244,-165.01531053,0.00022191,6]
[366653169,1750377039254,-460.0,0.00022191,6]
[366653170,1750377039263,-440.0,0.00022191,6]
[366653171,1750377039273,-440.0,0.00022191,6]
[366653172,1750377039283,-1998.95,0.00022191,6]
[366653173,1750377039293,-349.68371732,0.00022191,6]
[366653174,1750377039302,-460.0,0.00022191,6]
[366653175,1750377039313,-460.0,0.00022191,6]
[366653176,1750377039322,-460.0,0.00022191,6]
[366653177,1750377039332,-460.0,0.00022191,6]
[366653178,1750377039342,-257.0,0.00022191,6]
[366653179,1750377039352,-460.0,0.00022191,6]
[366653180,1750377039362,-2602.57343035,0.0002221,2]
[366653181,1750377039371,-152.259077,0.0002221,7]
[366653182,1750377039381,-3000.0,0.0002222,2]
[366653183,1750377039391,-151.0,0.0002222,7]
[366653184,1750377039400,-400.0,0.00022226,6]
[366653185,1750377039410,-460.0,0.00022226,6]
[366653186,1750377039420,-250.0,0.00022226,6]
[366653187,1750377039430,-501.56343184,0.00022226,6]
[366653188,1750377039440,-460.0,0.00022226,6]
[366653189,1750377039450,-460.0,0.00022229,6]
[366653190,1750377039460,-3000.0,0.0002223,2]
[366653191,1750377039470,-151.0,0.0002223,7]
[366653192,1750377039480,-151.0,0.0002223,7]
[366653193,1750377039489,-151.0,0.0002223,7]
[366653194,1750377039500,-161.08757,0.0002223,7]
[366653195,1750377039511,-161.08757,0.0002223,7]
[366653196,1750377039521,-151.0,0.0002223,7]
[366653197,1750377039531,-151.0,0.0002223,7]
[366653198,1750377039542,-3000.0,0.0002224,2]
[366653199,1750377039552,-788.0,0.00022245,2]
[366653200,1750377039562,-500.0,0.00022248,2]
[366653201,1750377039572,-3000.0,0.0002225,2]
[366653202,1750377039582,-500.0,0.00022252,2]
[366653203,1750377039592,-3000.0,0.0002226,2]
[366653204,1750377039602,-168.0,0.00022264,2]
[366653205,1750377039612,-3000.0,0.0002227,2]
[366653206,1750377039622,-151.0,0.0002227,7]
[366653207,1750377039632,-460.0,0.00022273,6]
[366653208,1750377039643,-151.0,0.00022273,7]
[366653209,1750377039655,-161.08757,0.00022273,7]
[366653210,1750377039664,-161.08757,0.00022273,7]
[366653211,1750377039678,-332.06859995,0.00022273,6]
[366653212,1750377039688,-460.0,0.00022273,6]
[366653213,1750377039699,-460.0,0.00022273,6]
[366653214,1750377039708,-460.0,0.00022273,6]
[366653215,1750377039719,-460.0,0.00022273,6]
[366653216,1750377039728,-151.0,0.00022273,7]
[366653217,1750377039738,-151.0,0.00022273,7]
[366653218,1750377039749,-460.0,0.00022273,6]
[366653219,1750377039759,-460.0,0.00022273,6]
[366653220,1750377039769,-460.0,0.00022273,6]
[366653221,1750377039779,-3000.0,0.0002228,2]
[366653222,1750377039788,-151.0,0.0002228,7]
[366653223,1750377039798,-151.0,0.0002228,7]
[366653224,1750377039807,-770.460391,0.0002228,7]
[366653225,1750377039817,-770.460391,0.0002228,7]
[366653226,1750377039827,-3000.0,0.0002229,2]
[366653227,1750377039838,-3000.0,0.000223,2]
[366653228,1750377039847,-252.153856,0.000223,7]
[366653229,1750377039857,-161.08757,0.000223,7]
[366653230,1750377039868,-161.08757,0.000223,7]
[366653231,1750377039878,-158.56,0.00022304,3]
[366653232,1750377039888,-475.69,0.00022304,3]
[366653233,1750377039898,-3000.0,0.0002231,2]
[366653234,1750377039908,-151.0,0.0002231,7]
[366653235,1750377039918,-151.0,0.0002231,7]
[366653236,1750377039927,-1175.40816155,0.00022314,7]
[366653238,1750377039937,-3000.0,0.0002232,2]
[366653239,1750377039948,-317.12,0.0002232,3]
[366653241,1750377039959,-3000.0,0.0002233,2]
[366653243,1750377039968,-634.24,0.0002233,3]
[366653245,1750377039979,-3000.0,0.0002234,2]
[366653247,1750377039990,-151.0,0.0002234,7]
[366653249,1750377040000,-151.0,0.0002234,7]
[366653251,1750377040010,-770.460391,0.0002234,7]
[366653253,1750377040020,-770.460391,0.0002234,7]
[366653262,1750377040169,-3000.0,0.0002235,2]
[366653263,1750377040179,-161.08757,0.0002235,7]
[366653264,1750377040189,-161.08757,0.0002235,7]
[366653265,1750377040199,-160.0,0.00022359,2]
[366653266,1750377040208,-3000.0,0.0002236,2]
[366653267,1750377040219,-151.0,0.0002236,7]
[366653268,1750377040229,-151.0,0.0002236,7]
[366653269,1750377040239,-3000.0,0.0002237,2]
[366653270,1750377040251,-3000.0,0.0002238,2]
[366653271,1750377040262,-707.0,0.00022382,2]
[366653272,1750377040272,-3000.0,0.0002239,2]
[366653273,1750377040282,-3000.0,0.000224,2]
[366653274,1750377040292,-1049.15,0.000224,7]
[366653275,1750377040304,-151.0,0.000224,7]
[366653276,1750377040314,-151.0,0.000224,7]
[366653277,1750377040324,-770.460391,0.000224,7]
[366653278,1750377040334,-770.460391,0.000224,7]
[366653279,1750377040343,-161.08757,0.000224,7]
[366653280,1750377040353,-161.08757,0.000224,7]
[366653281,1750377040362,-151.0,0.000224,7]
[366653282,1750377040372,-151.0,0.000224,7]
[366653283,1750377040381,-3000.0,0.0002241,2]
[366653284,1750377040391,-3000.0,0.0002242,2]
[366653285,1750377040402,-3000.0,0.0002243,2]
[366653286,1750377040411,-3000.0,0.0002244,2]
[366653287,1750377040420,-3000.0,0.0002245,2]
[366653288,1750377040429,-161.08757,0.0002245,7]
[366653289,1750377040439,-161.08757,0.0002245,7]
[366653290,1750377040450,-1175.40816155,0.00022452,7]
[366653291,1750377040461,-151.0,0.00022452,7]
[366653292,1750377040472,-151.0,0.00022452,7]
[366653293,1750377040482,-3000.0,0.0002246,2]
[366653294,1750377040492,-151.0,0.0002246,7]
[366653295,1750377040502,-151.0,0.0002246,7]
[366653296,1750377040511,-770.460391,0.0002246,7]
[366653297,1750377040521,-770.460391,0.0002246,7]
[366653298,1750377040530,-460.0,0.00022465,2]
[366653299,1750377040541,-507.65813884,0.00022465,6]
[366653300,1750377040550,-460.0,0.00022465,6]
[366653301,1750377040560,-460.0,0.00022465,6]
[366653302,1750377040570,-460.0,0.00022465,6]
[366653303,1750377040581,-460.0,0.00022465,6]
[366653304,1750377040591,-460.0,0.00022465,6]
[366653305,1750377040602,-460.0,0.00022465,6]
[366653306,1750377040612,-460.0,0.00022465,6]
[366653307,1750377040621,-1998.95,0.00022465,6]
[366653308,1750377040631,-460.0,0.00022465,6]
[366653309,1750377040641,-460.0,0.00022465,6]
[366653310,1750377040650,-460.0,0.00022465,6]
[366653311,1750377040660,-460.0,0.00022465,6]
[366653312,1750377040670,-460.0,0.00022465,6]
[366653313,1750377040683,-3000.0,0.0002247,2]
[366653314,1750377040693,-3000.0,0.0002248,2]
[366653315,1750377040702,-3000.0,0.0002249,2]
[366653316,1750377040712,-161.08757,0.0002249,7]
[366653317,1750377040722,-161.08757,0.0002249,7]
[366653318,1750377040732,-168.0,0.00022493,2]
[366653319,1750377040742,-3000.0,0.000225,2]
[366653320,1750377040753,-151.0,0.000225,7]
[366653321,1750377040762,-176.254212,0.000225,7]
[366653322,1750377040773,-3000.0,0.0002251,2]
[366653323,1750377040783,-151.0,0.0002251,7]
[366653324,1750377040793,-151.0,0.0002251,7]
[366653325,1750377040802,-770.460391,0.0002251,7]
[366653326,1750377040812,-770.460391,0.0002251,7]
[366653327,1750377040822,-3000.0,0.0002252,2]
[366653328,1750377040831,-3000.0,0.0002253,2]
[366653329,1750377040841,-3000.0,0.0002254,2]
[366653330,1750377040850,-161.08757,0.0002254,7]
[366653331,1750377040860,-161.08757,0.0002254,7]
[366653332,1750377040870,-151.0,0.0002254,7]
[366653333,1750377040880,-296.68,0.00022547,6]
[366653334,1750377040891,-460.0,0.00022547,6]
[366653335,1750377040903,-215.24,0.00022547,6]
[366653336,1750377040913,-460.0,0.00022547,6]
[366653337,1750377040923,-460.0,0.00022547,6]
[366653338,1750377040934,-460.0,0.00022547,6]
[366653339,1750377040944,-460.0,0.00022547,6]
[366653340,1750377040955,-3000.0,0.0002255,2]
[366653341,1750377040965,-3550.81196,0.0002256,2]
[366653342,1750377040975,-1175.40816155,0.0002259,7]
[366653343,1750377040985,-1175.40816155,0.00022728,7]
[366653344,1750377040995,-460.0,0.00022739,2]
[366653345,1750377041006,-161.08757,0.00022739,7]
[366653346,1750377041016,-161.08757,0.00022739,7]
[366653347,1750377041025,-460.0,0.00022739,6]
[366653348,1750377041035,-460.0,0.00022739,6]
[366653349,1750377041045,-460.0,0.00022739,6]
[366653350,1750377041054,-460.0,0.00022739,6]
[366653351,1750377041065,-460.0,0.00022739,6]
[366653352,1750377041074,-472.56,0.00022739,6]
[366653353,1750377041084,-460.0,0.00022739,6]
[366653354,1750377041093,-1998.95,0.00022739,6]
[366653355,1750377041104,-460.0,0.00022739,6]
[366653356,1750377041115,-460.0,0.00022739,6]
[366653357,1750377041124,-460.0,0.00022739,6]
[366653358,1750377041134,-460.0,0.00022739,6]
[366653359,1750377041145,-151.0,0.00022774,7]
[366653360,1750377041155,-151.0,0.00022774,7]
[366653361,1750377041165,-770.460391,0.00022774,7]
[366653362,1750377041175,-770.460391,0.00022774,7]
[366653363,1750377041184,-151.0,0.00022774,7]
[366653364,1750377041194,-1000.0,0.000228,2]
[366653365,1750377041203,-285.04,0.00022821,6]
[366653366,1750377041214,-460.0,0.00022821,6]
[366653367,1750377041224,-460.0,0.00022821,6]
[366653368,1750377041233,-460.0,0.00022821,6]
[366653369,1750377041243,-461.74,0.00022821,6]
[366653370,1750377041253,-160.0,0.0002285,3]
[366653371,1750377041264,-1175.40816155,0.00022866,8]
[366653372,1750377041273,-509.19,0.00023,2]
[366653373,1750377041283,-169.0,0.00023,7]
[366653374,1750377041292,-1175.40816155,0.00023003,8]
[366653375,1750377041302,-460.0,0.00023013,2]
[366653376,1750377041311,-460.0,0.00023013,6]
[366653377,1750377041321,-460.0,0.00023013,6]
[366653378,1750377041331,-460.0,0.00023013,6]
[366653379,1750377041341,-460.0,0.00023013,6]
[366653380,1750377041351,-460.0,0.00023013,6]
[366653381,1750377041361,-1998.95,0.00023013,6]
[366653382,1750377041370,-460.0,0.00023013,6]
[366653383,1750377041379,-460.0,0.00023013,6]
[366653384,1750377041389,-460.0,0.00023013,6]
[366653385,1750377041399,-608.46,0.00023013,6]
[366653386,1750377041409,-251.01899682,0.00023095,6]
[366653387,1750377041419,-460.0,0.00023095,6]
[366653388,1750377041428,-460.0,0.00023095,6]
[366653389,1750377041438,-1175.40816155,0.00023141,8]
[366653390,1750377041448,-500.0,0.00023166,2]
[366653391,1750377041458,-168.0,0.00023196,2]
[366653392,1750377041467,-207.4,0.00023226,2]
[366653393,1750377041477,-500.0,0.00023226,2]
[366653394,1750377041486,-500.0,0.00023226,2]
[366653395,1750377041495,-500.0,0.00023226,2]
[366653396,1750377041505,-288.1465802,0.00023226,2]
[366653397,1750377041518,-500.0,0.00023251,2]
[366653398,1750377041528,-1175.40816155,0.00023279,8]
[366653399,1750377041538,-460.0,0.00023287,2]
[366653400,1750377041548,-460.0,0.00023287,6]
[366653401,1750377041558,-460.0,0.00023287,6]
[366653402,1750377041567,-460.0,0.00023287,6]
[366653403,1750377041577,-460.0,0.00023287,6]
[366653404,1750377041586,-460.0,0.00023287,6]
[366653405,1750377041596,-1998.95,0.00023287,6]
[366653406,1750377041606,-460.0,0.00023287,6]
[366653407,1750377041616,-387.78,0.00023287,6]
[366653408,1750377041626,-460.0,0.00023287,6]
[366653409,1750377041635,-1500.0,0.00023348,2]
[366653410,1750377041645,-407.14,0.00023369,6]
[366653411,1750377041655,-460.0,0.00023369,6]
[366653412,1750377041664,-1175.40816155,0.00023417,9]
[366653413,1750377041676,-500.0,0.0002349,2]
[366653414,1750377041687,-1129.535508,0.0002352,3]
[366653415,1750377041696,-151.0,0.0002352,7]
[366653416,1750377041706,-151.0,0.0002352,7]
[366653417,1750377041718,-770.460391,0.0002352,7]
[366653418,1750377041728,-770.460391,0.0002352,7]
[366653419,1750377041738,-500.0,0.00023538,2]
[366653420,1750377041747,-1175.40816155,0.00023555,9]
[366653421,1750377041760,-460.0,0.00023561,2]
[366653422,1750377041770,-460.0,0.00023561,6]
[366653423,1750377041780,-460.0,0.00023561,6]
[366653424,1750377041790,-511.4222625,0.00023561,6]
[366653425,1750377041800,-460.0,0.00023561,6]
[366653426,1750377041809,-460.0,0.00023561,6]
[366653427,1750377041818,-1998.95,0.00023561,6]
[366653428,1750377041828,-460.0,0.00023561,6]
[366653429,1750377041837,-460.0,0.00023561,6]
[366653430,1750377041847,-370.64,0.00023574,2]
[366653431,1750377041856,-406.0,0.00023574,2]
[366653432,1750377041865,-707.0,0.00023586,2]
[366653433,1750377041876,-500.0,0.00023611,2]
[366653434,1750377041886,-151.0,0.00023627,7]
[366653435,1750377041896,-271.588831,0.00023627,7]
[366653436,1750377041907,-271.588831,0.00023627,7]
[366653437,1750377041917,-151.0,0.00023627,7]
[366653438,1750377041926,-500.0,0.00023633,2]
[366653439,1750377041936,-500.0,0.00023633,2]
[366653440,1750377041945,-500.0,0.00023633,2]
[366653441,1750377041954,-420.0,0.00023641,2]
[366653442,1750377041964,-460.0,0.00023643,6]
[366653443,1750377041973,-420.0,0.00023647,2]
[366653444,1750377041983,-317.12,0.00023674,3]
[366653445,1750377041993,-634.24,0.0002369,3]
[366653446,1750377042003,-1175.40816155,0.00023693,9]
[366653447,1750377042015,-1268.48,0.000237,3]
[366653448,1750377042024,-707.0,0.00023718,2]
[366653449,1750377042034,-500.0,0.00023722,2]
[366653450,1750377042044,-500.0,0.00023722,2]
[366653451,1750377042054,-506.00183821,0.00023722,2]
[366653452,1750377042064,-603.65051825,0.00023722,2]
[366653453,1750377042073,-600.0,0.00023722,2]
[366653454,1750377042083,-500.0,0.00023722,2]
[366653455,1750377042092,-500.0,0.00023722,2]
[366653456,1750377042101,-500.0,0.00023722,2]
[366653457,1750377042111,-160.0,0.00023729,2]
[366653458,1750377042121,-162.34237938,0.00023753,2]
[366653459,1750377042131,-707.0,0.00023767,2]
[366653460,1750377042140,-500.0,0.00023792,2]
[366653461,1750377042149,-500.0,0.00023792,2]
[366653462,1750377042158,-502.43041222,0.00023792,2]
[366653463,1750377042168,-500.0,0.00023792,2]
[366653464,1750377042177,-486.4350264,0.00023792,2]
[366653465,1750377042187,-1049.15,0.000238,7]
[366653466,1750377042196,-500.0,0.00023814,2]
[366653467,1750377042206,-1175.40816155,0.00023831,10]
[366653468,1750377042215,-460.0,0.00023835,2]
[366653469,1750377042225,-460.0,0.00023835,6]
[366653470,1750377042235,-460.0,0.00023835,6]
[366653471,1750377042244,-460.0,0.00023835,6]
[366653472,1750377042254,-538.84,0.00023835,6]
[366653473,1750377042265,-1998.95,0.00023835,6]
[366653474,1750377042274,-277.8,0.00023835,6]
[366653475,1750377042284,-460.0,0.00023835,6]
[366653476,1750377042294,-500.0,0.00023879,2]
[366653477,1750377042304,-213.47708638,0.0002389,7]
[366653478,1750377042314,-160.0,0.0002389,7]
[366653479,1750377042324,-2000.0,0.0002389,7]
[366653480,1750377042335,-2000.0,0.0002389,7]
[366653481,1750377042344,-2000.0,0.0002389,7]
[366653482,1750377042355,-2000.0,0.0002389,7]
[366653483,1750377042364,-235.21646079,0.0002389,7]
[366653484,1750377042373,-151.0,0.0002389,7]
[366653485,1750377042383,-256.362052,0.0002389,7]
[366653486,1750377042393,-770.460391,0.0002389,7]
[366653487,1750377042403,-770.460391,0.0002389,7]
[366653488,1750377042412,-500.0,0.00023896,2]
[366653489,1750377042422,-500.0,0.00023904,2]
[366653490,1750377042432,-507.4259494,0.0002391,2]
[366653491,1750377042442,-500.0,0.0002391,2]
[366653492,1750377042452,-460.0,0.00023917,6]
[366653493,1750377042461,-779.75,0.00023941,2]
[366653494,1750377042471,-500.0,0.00023962,2]
[366653495,1750377042481,-1175.40816155,0.00023969,10]
[366653496,1750377042491,-500.0,0.00023982,2]
[366653498,1750377042501,-1142.62286542,0.00024,3]
[366653500,1750377042512,-1050.440186,0.00024,2]
[366653502,1750377042522,-1050.440186,0.00024,2]
[366653504,1750377042531,-203.706318,0.00024,7]
[366653506,1750377042541,-203.706318,0.00024,7]
[366653508,1750377042551,-151.0,0.00024,7]
[366653510,1750377042562,-151.0,0.00024,7]
[366653512,1750377042572,-151.0,0.00024,7]
[366653514,1750377042582,-151.0,0.00024,7]
[366653516,1750377042592,-271.588831,0.00024,7]
[366653518,1750377042602,-271.588831,0.00024,7]
[366653520,1750377042612,-151.0,0.00024,7]
[366653523,1750377042622,-182.168866,0.00024,7]
[366653525,1750377042631,-160.0,0.00024,3]
[366653528,1750377042642,-160.0,0.00024,7]
[366653530,1750377042651,-213.47708638,0.00024,3]
[366653532,1750377042661,-213.47708638,0.00024,30]
[366653534,1750377042672,-160.0,0.00024,3]
[366653536,1750377042682,-160.0,0.00024,3]
[366653538,1750377042692,-160.0,0.00024,7]
[366653539,1750377042701,-160.0,0.00024,3]
[366653540,1750377042711,-151.0,0.00024,7]
[366653541,1750377042722,-151.0,0.00024,7]
[366653542,1750377042732,-770.460391,0.00024,7]
[366653543,1750377042744,-770.460391,0.00024,7]
[366653544,1750377042755,-770.460391,0.00024,7]
[366653545,1750377042765,-770.460385,0.00024,7]
[366653546,1750377042775,-160.0,0.00024,3]
[366653547,1750377042785,-160.0,0.00024,7]
[366653548,1750377042795,-729.812895,0.00024,2]
[366653549,1750377042804,-230.0259007,0.00024,3]
[366653550,1750377042815,-230.0259007,0.00024,7]
[366653551,1750377042824,-160.0,0.00024,7]
[366653552,1750377042834,-230.0259007,0.00024,7]
[366653553,1750377042844,-836.1357872,0.00024,3]
[366653554,1750377042855,-836.1357872,0.00024,7]
[366653555,1750377042971,-836.1357872,0.00024,7]
[366653556,1750377042997,-12544.68530873,0.00024,3]
[366653557,1750377043007,-841.19776426,0.00024,3]
[366653558,1750377043018,-424.78309573,0.00024,3]
[366653559,1750377043028,-500.0,0.00024041,2]
[366653560,1750377043039,-500.0,0.00024042,2]
[366653561,1750377043049,-2200.0,0.00024089,2]
[366653562,1750377043060,-1175.40816155,0.00024107,10]
[366653563,1750377043070,-460.0,0.00024109,6]
[366653564,1750377043079,-460.0,0.00024109,6]
[366653565,1750377043088,-460.0,0.00024109,6]
[366653566,1750377043098,-1998.95,0.00024109,6]
[366653567,1750377043107,-460.0,0.00024109,6]
[366653568,1750377043117,-500.0,0.00024141,2]
[366653569,1750377043128,-1000.0,0.00024181,2]
[366653571,1750377043138,-1000.0,0.00024181,2]
[366653574,1750377043148,-460.0,0.00024191,6]
[366653577,1750377043157,-1175.40816155,0.00024245,10]
[366653581,1750377043168,-500.0,0.00024257,2]
[366653584,1750377043178,-1000.0,0.0002427,2]
[366653586,1750377043188,-1000.0,0.0002427,2]
[366653588,1750377043197,-1038.70469555,0.0002427,2]
[366653589,1750377043207,-1200.0,0.0002427,2]
[366653590,1750377043216,-1000.0,0.0002427,2]
[366653591,1750377043226,-1000.0,0.0002427,2]
[366653593,1750377043236,-500.0,0.00024328,2]
[366653595,1750377043244,-1000.0,0.0002434,2]
[366653597,1750377043254,-1032.83477575,0.0002434,2]
[366653599,1750377043264,-1000.0,0.0002434,2]
[366653601,1750377043272,-1012.94910348,0.00024362,2]
[366653603,1750377043281,-500.0,0.00024375,2]
[366653605,1750377043291,-1175.40816155,0.00024383,11]
[366653608,1750377043300,-562.59550903,0.00024383,6]
[366653611,1750377043310,-460.0,0.00024383,6]
[366653613,1750377043319,-460.0,0.00024383,6]
[366653615,1750377043328,-1998.95,0.00024383,6]
[366653617,1750377043337,-460.0,0.00024383,6]
[366653618,1750377043347,-166.06753623,0.00024458,2]
[366653619,1750377043356,-460.0,0.00024465,6]
[366653620,1750377043366,-500.0,0.00024471,2]
[366653621,1750377043375,-1175.40816155,0.00024521,11]
[366653622,1750377043386,-500.0,0.00024553,2]
[366653623,1750377043395,-151.0,0.00024573,7]
[366653624,1750377043404,-324.90543077,0.00024594,2]
[366653625,1750377043413,-215.0738,0.00024595,2]
[366653626,1750377043422,-85850.87726236,0.00024598,2]
[366653627,1750377043432,-1050.440186,0.00024598,2]
[366653628,1750377043443,-1050.440186,0.00024598,2]
[366653629,1750377043452,-151.0,0.00024598,7]
[366653630,1750377043461,-203.706318,0.00024598,7]
[366653631,1750377043470,-203.706318,0.00024598,7]
[366653632,1750377043479,-151.0,0.00024598,7]
[366653633,1750377043489,-151.0,0.00024598,7]
[366653634,1750377043498,-151.0,0.00024598,7]
[366653635,1750377043507,-151.0,0.00024598,7]
[366653636,1750377043518,-271.588831,0.00024598,7]
[366653637,1750377043527,-271.588831,0.00024598,7]
[366653638,1750377043537,-151.0,0.000246,9]
[366653639,1750377043546,-151.0,0.000246,9]
[366653640,1750377043556,-21922.03564797,0.0002465,2]
[366653641,1750377043565,-460.0,0.00024657,6]
[366653642,1750377043575,-460.0,0.00024657,6]
[366653643,1750377043584,-1998.95,0.00024657,6]
[366653644,1750377043594,-460.0,0.00024657,6]
[366653645,1750377043603,-446.02989486,0.00024658,2]
[366653646,1750377043612,-500.0,0.00024658,2]
[366653647,1750377043622,-1175.40816155,0.00024659,11]
[366653648,1750377043631,-500.0,0.00024665,2]
[366653649,1750377043641,-500.0,0.00024685,2]
[366653650,1750377043650,-800.0,0.00024696,2]
[366653651,1750377043660,-500.0,0.00024713,2]
[366653652,1750377043671,-703.0340376,0.00024719,2]
[366653653,1750377043683,-1500.0,0.00024729,2]
[366653654,1750377043693,-1500.0,0.00024729,2]
[366653655,1750377043703,-460.0,0.00024739,6]
[366653656,1750377043714,-500.0,0.0002474,2]
[366653657,1750377043724,-500.0,0.00024768,2]
[366653658,1750377043734,-12893.98247969,0.00024774,2]
[366653659,1750377043745,-151.0,0.00024774,7]
[366653660,1750377043754,-203.706318,0.00024774,7]
[366653661,1750377043764,-203.706318,0.00024774,7]
[366653662,1750377043773,-151.0,0.00024774,7]
[366653663,1750377043783,-151.0,0.00024774,7]
[366653664,1750377043793,-151.0,0.00024774,7]
[366653665,1750377043803,-271.588831,0.00024774,7]
[366653666,1750377043812,-271.588831,0.00024774,7]
[366653667,1750377043822,-500.0,0.00024795,2]
[366653668,1750377043831,-1050.440186,0.00024796,2]
[366653669,1750377043841,-1050.440186,0.00024796,2]
[366653670,1750377043851,-1175.40816155,0.00024797,11]
[366653671,1750377043860,-2000.0,0.000248,2]
[366653672,1750377043869,-2000.0,0.000248,2]
[366653673,1750377043879,-2000.0,0.000248,2]
[366653674,1750377043888,-1029.2,0.000248,2]
[366653675,1750377043897,-1050.440186,0.000248,2]
[366653676,1750377043908,-1050.440186,0.000248,2]
[366653677,1750377043919,-203.706318,0.000248,7]
[366653678,1750377043930,-203.706318,0.000248,7]
[366653679,1750377043941,-151.0,0.000248,7]
[366653680,1750377043951,-151.0,0.000248,7]
[366653681,1750377043962,-271.588831,0.000248,7]
[366653682,1750377043975,-271.588831,0.000248,7]
[366653683,1750377043985,-7572.38459491,0.000248,2]
[366653684,1750377043995,-32188.0205825,0.000248,2]
[366653685,1750377044006,-1500.0,0.00024818,2]
[366653686,1750377044018,-501.13611305,0.00024818,2]
[366653687,1750377044029,-1800.0,0.00024818,2]
[366653688,1750377044041,-1500.0,0.00024818,2]
[366653689,1750377044051,-1000.0,0.00024818,2]
[366653690,1750377044061,-500.0,0.00024822,2]
[366653691,1750377044070,-7572.38459491,0.00024827,2]
[366653692,1750377044081,-500.0,0.0002485,2]
[366653693,1750377044092,-7572.38459491,0.00024855,2]
[366653694,1750377044102,-800.0,0.00024858,2]
[366653695,1750377044113,-599.66,0.00024869,3]
[366653696,1750377044123,-2299.14432732,0.00024872,2]
[366653697,1750377044133,-150.0,0.00024873,2]
[366653698,1750377044143,-500.0,0.00024877,2]
[366653699,1750377044154,-2299.14432732,0.0002488,2]
[366653701,1750377044165,-7572.38459491,0.00024882,2]
[366653703,1750377044174,-525.90755015,0.00024888,2]
[366653705,1750377044185,-1500.0,0.00024888,2]
[366653707,1750377044195,-1050.440186,0.0002489,2]
[366653708,1750377044205,-1050.440186,0.0002489,2]
[366653710,1750377044216,-203.706318,0.0002489,7]
[366653712,1750377044225,-203.706318,0.0002489,7]
[366653714,1750377044235,-151.0,0.0002489,7]
[366653716,1750377044244,-151.0,0.0002489,7]
[366653717,1750377044256,-271.588831,0.0002489,7]
[366653718,1750377044266,-271.588831,0.0002489,7]
[366653719,1750377044275,-9196.57730928,0.0002489,2]